[Event "Biel DQA Blitzn"]
[Site "Biel/Bienne, Switzerland"]
[Date "2022.07.17"]
[Round "9.3"]
[White "Keymer, Cecilia"]
[Black "Tamrazyan, Gohar"]
[Result "0-1"]
[TimeControl "3 min + 2 sec"]
[WhiteElo "1652"]
[BlackElo "1733"]

1. d4 {[%clk 00:03:03]} d5 {[%clk 00:03:04]} 2. c4 {[%clk 00:03:04]} e6 {[%clk
00:03:05]} 3. Nc3 {[%clk 00:03:04]} {[%emt 00:00:03]} c5 {[%clk 00:03:07]} 4.
cxd5 {[%clk 00:02:54]} {[%emt 00:00:12]} exd5 {[%clk 00:03:08]} 5. Nf3 {[%clk
00:02:55]} {[%emt 00:00:01]} Nc6 {[%clk 00:03:09]} {[%emt 00:00:01]} 6. Bg5
{[%clk 00:02:52]} {[%emt 00:00:05]} Be7 {[%clk 00:02:58]} {[%emt 00:00:13]} 7.
Bxe7 {[%clk 00:02:51]} {[%emt 00:00:03]} Ngxe7 {[%clk 00:02:59]} 8. dxc5 {[%clk
00:02:43]} {[%emt 00:00:10]} d4 {[%clk 00:02:58]} {[%emt 00:00:03]} 9. Ne4
{[%clk 00:02:26]} {[%emt 00:00:19]} O-O {[%clk 00:02:49]} {[%emt 00:00:12]} 10.
Nd6 {[%clk 00:02:18]} {[%emt 00:00:10]} Qa5+ {[%clk 00:02:39]} {[%emt
00:00:11]} 11. Qd2 {[%clk 00:02:15]} {[%emt 00:00:05]} Qxc5 {[%clk 00:02:40]}
{[%emt 00:00:02]} 12. Nxc8 {[%clk 00:02:09]} {[%emt 00:00:08]} Raxc8 {[%clk
00:02:41]} {[%emt 00:00:01]} 13. Rc1 {[%clk 00:02:08]} {[%emt 00:00:02]} Qb4
{[%clk 00:02:21]} {[%emt 00:00:22]} 14. e3 {[%clk 00:01:41]} {[%emt 00:00:30]}
dxe3 {[%clk 00:02:14]} {[%emt 00:00:09]} 15. fxe3 {[%clk 00:01:38]} {[%emt
00:00:05]} Qxd2+ {[%clk 00:02:09]} {[%emt 00:00:07]} 16. Kxd2 {[%clk 00:01:34]}
{[%emt 00:00:06]} Rfd8+ {[%clk 00:02:08]} {[%emt 00:00:03]} 17. Ke1 {[%clk
00:01:23]} {[%emt 00:00:13]} g6 {[%clk 00:01:54]} {[%emt 00:00:16]} 18. Kf2
{[%clk 00:01:13]} {[%emt 00:00:12]} Nb4 {[%clk 00:01:53]} {[%emt 00:00:04]} 19.
Bc4 {[%clk 00:01:03]} {[%emt 00:00:11]} a6 {[%clk 00:01:27]} {[%emt 00:00:28]}
20. a3 {[%clk 00:00:59]} {[%emt 00:00:07]} Nbd5 {[%clk 00:01:18]} {[%emt
00:00:11]} 21. Rhd1 {[%clk 00:00:48]} {[%emt 00:00:12]} Nb6 {[%clk 00:01:08]}
{[%emt 00:00:12]} 22. Be2 {[%clk 00:00:39]} {[%emt 00:00:10]} Rxd1 {[%clk
00:01:01]} {[%emt 00:00:09]} 23. Rxc8+ {[%clk 00:00:34]} {[%emt 00:00:08]}
Nbxc8 {[%clk 00:00:59]} {[%emt 00:00:04]} 24. Bxd1 {[%clk 00:00:35]} b6 {[%clk
00:00:57]} {[%emt 00:00:05]} 25. Nd4 {[%clk 00:00:35]} {[%emt 00:00:01]} Nd6
{[%clk 00:00:55]} {[%emt 00:00:05]} 26. Be2 {[%clk 00:00:31]} {[%emt 00:00:06]}
a5 {[%clk 00:00:56]} 27. Kf3 {[%clk 00:00:23]} {[%emt 00:00:09]} Kg7 {[%clk
00:00:56]} {[%emt 00:00:01]} 28. e4 {[%clk 00:00:21]} {[%emt 00:00:04]} Kf6
{[%clk 00:00:52]} {[%emt 00:00:07]} 29. Ke3 {[%clk 00:00:15]} {[%emt 00:00:08]}
h6 {[%clk 00:00:39]} {[%emt 00:00:15]} 30. Nf3 {[%clk 00:00:15]} {[%emt
00:00:02]} Ke6 {[%clk 00:00:33]} {[%emt 00:00:08]} 31. Bd3 {[%clk 00:00:09]}
{[%emt 00:00:08]} Nc6 {[%clk 00:00:33]} {[%emt 00:00:02]} 32. Nd4+ {[%clk
00:00:08]} {[%emt 00:00:04]} Nxd4 {[%clk 00:00:31]} {[%emt 00:00:04]} 33. Kxd4
{[%clk 00:00:09]} f6 {[%clk 00:00:27]} {[%emt 00:00:05]} 34. Ke3 {[%clk
00:00:05]} {[%emt 00:00:06]} Ke5 {[%clk 00:00:29]} {[%emt 00:00:01]} 35. Bc2
{[%clk 00:00:05]} {[%emt 00:00:02]} Nc4+ {[%clk 00:00:29]} {[%emt 00:00:01]} 36.
Kf3 {[%clk 00:00:03]} {[%emt 00:00:03]} Nxb2 {[%clk 00:00:30]} {[%emt
00:00:02]} 37. Bb3 {[%clk 00:00:04]} {[%emt 00:00:01]} Nd3 {[%clk 00:00:28]}
{[%emt 00:00:04]} 38. Bd5 {[%clk 00:00:04]} {[%emt 00:00:02]} f5 {[%clk
00:00:23]} {[%emt 00:00:08]} 39. Bc4 {[%clk 00:00:04]} {[%emt 00:00:02]} fxe4+
{[%clk 00:00:22]} {[%emt 00:00:02]} 40. Ke3 {[%clk 00:00:05]} Nc5 {[%clk
00:00:21]} {[%emt 00:00:04]} 41. Bf7 {[%clk 00:00:05]} {[%emt 00:00:02]} g5
{[%clk 00:00:22]} {[%emt 00:00:01]} 42. g3 {[%clk 00:00:05]} {[%emt 00:00:02]}
Nd7 {[%clk 00:00:21]} {[%emt 00:00:02]} 43. Bb3 {[%clk 00:00:03]} {[%emt
00:00:04]} Nf6 {[%clk 00:00:19]} {[%emt 00:00:05]} 44. Bc2 {[%emt 00:00:02]}
Ng4+ {[%clk 00:00:18]} {[%emt 00:00:02]} 45. Ke2 {[%clk 00:00:03]} {[%emt
00:00:03]} Nxh2 {[%clk 00:00:19]} {[%emt 00:00:01]} 46. Kf2 {[%clk 00:00:04]}
Ng4+ {[%clk 00:00:19]} {[%emt 00:00:03]} 47. Ke2 {[%clk 00:00:05]} Kd4 {[%clk
00:00:20]} {[%emt 00:00:01]} 48. Ke1 {[%clk 00:00:05]} {[%emt 00:00:02]} Ke3
{[%clk 00:00:21]} {[%emt 00:00:02]} 49. Kf1 {[%clk 00:00:04]} {[%emt 00:00:02]}
Kf3 {[%clk 00:00:22]} {[%emt 00:00:01]} 50. Ke1 {[%clk 00:00:05]} e3 {[%clk
00:00:22]} {[%emt 00:00:02]} 51. Kf1 {[%clk 00:00:06]} e2+ {[%clk 00:00:23]}
{[%emt 00:00:01]} 52. Ke1 {[%clk 00:00:07]} {[%emt 00:00:01]} Ne3 {[%clk
00:00:18]} {[%emt 00:00:07]} 53. Bd3 {[%clk 00:00:06]} {[%emt 00:00:04]} Ng2+
{[%clk 00:00:19]} {[%emt 00:00:01]} 54. Kd2 {[%emt 00:00:02]} 0-1

[Event "Biel DQA Blitzn"]
[Site "Biel/Bienne, Switzerland"]
[Date "2022.07.17"]
[Round "9.4"]
[White "Avilova, Yulia"]
[Black "Zhuang, Yongzhe"]
[Result "0-1"]
[TimeControl "3 min + 2 sec"]
[WhiteElo "1597"]
[BlackElo "1681"]

1. Nf3 {[%clk 00:03:04]} d5 {[%emt 00:00:02]} 2. c4 e6 {[%emt 00:00:02]} 3. e3
c5 {[%clk 00:03:02]} {[%emt 00:00:01]} 4. cxd5 {[%clk 00:03:08]} exd5 {[%clk
00:03:03]} {[%emt 00:00:02]} 5. d4 {[%clk 00:03:09]} Nc6 {[%clk 00:03:01]}
{[%emt 00:00:04]} 6. Be2 {[%clk 00:03:11]} Nf6 {[%clk 00:03:01]} {[%emt
00:00:02]} 7. O-O {[%clk 00:03:12]} {[%emt 00:00:02]} Be7 {[%clk 00:03:00]}
{[%emt 00:00:04]} 8. Nc3 {[%clk 00:03:13]} {[%emt 00:00:01]} O-O {[%clk
00:03:00]} {[%emt 00:00:02]} 9. dxc5 {[%clk 00:03:14]} {[%emt 00:00:01]} Bxc5
{[%clk 00:03:00]} {[%emt 00:00:01]} 10. a3 {[%clk 00:03:15]} a6 {[%clk
00:02:57]} {[%emt 00:00:06]} 11. Rb1 {[%clk 00:03:13]} {[%emt 00:00:05]} Re8
{[%clk 00:02:56]} {[%emt 00:00:03]} 12. b4 {[%clk 00:03:14]} Ba7 {[%clk
00:02:56]} {[%emt 00:00:01]} 13. Bb2 {[%clk 00:03:14]} {[%emt 00:00:02]} Be6
{[%clk 00:02:48]} 14. Qc2 {[%clk 00:03:11]} {[%emt 00:00:15]} h6 {[%clk
00:02:47]} 15. Rfd1 {[%clk 00:03:11]} {[%emt 00:00:06]} Qe7 {[%clk 00:02:45]}
16. Rbc1 {[%clk 00:03:04]} {[%emt 00:00:13]} Rad8 {[%clk 00:02:39]} 17. Nd4
{[%clk 00:03:00]} {[%emt 00:00:13]} Nxd4 {[%clk 00:02:36]} 18. exd4 {[%clk
00:03:00]} Bb8 {[%clk 00:02:36]} 19. Bf3 {[%clk 00:03:01]} {[%emt 00:00:21]}
Qd6 {[%clk 00:02:25]} {[%emt 00:00:02]} 20. g3 {[%clk 00:03:01]} {[%emt
00:00:03]} Qd7 {[%clk 00:02:23]} {[%emt 00:00:04]} 21. Bg2 {[%clk 00:02:59]}
{[%emt 00:00:04]} Bf5 {[%clk 00:02:20]} {[%emt 00:00:04]} 22. Qb3 {[%clk
00:02:59]} {[%emt 00:00:02]} Ne4 {[%clk 00:02:17]} {[%emt 00:00:05]} 23. Ne2
{[%clk 00:02:39]} {[%emt 00:00:22]} Qe7 {[%clk 00:02:06]} {[%emt 00:00:12]} 24.
Nf4 {[%clk 00:02:38]} {[%emt 00:00:03]} Qd6 {[%clk 00:01:57]} {[%emt 00:00:11]}
25. b5 {[%clk 00:02:27]} {[%emt 00:00:14]} g5 {[%clk 00:01:43]} {[%emt
00:00:16]} 26. Nd3 {[%clk 00:02:23]} {[%emt 00:00:06]} Qe6 {[%clk 00:01:31]}
{[%emt 00:00:13]} 27. Nc5 {[%clk 00:02:19]} {[%emt 00:00:06]} Nxc5 {[%clk
00:01:30]} {[%emt 00:00:03]} 28. dxc5 {[%clk 00:02:15]} {[%emt 00:00:07]} Be4
{[%clk 00:01:17]} {[%emt 00:00:14]} 29. Re1 {[%clk 00:02:06]} {[%emt 00:00:11]}
Qf5 {[%clk 00:01:14]} {[%emt 00:00:04]} 30. Bf1 {[%clk 00:01:35]} {[%emt
00:00:34]} axb5 {[%clk 00:00:59]} {[%emt 00:00:18]} 31. Bxb5 {[%clk 00:01:33]}
{[%emt 00:00:04]} Qh3 {[%clk 00:00:57]} {[%emt 00:00:03]} 32. Bf1 {[%clk
00:01:33]} {[%emt 00:00:02]} Qf5 {[%clk 00:00:55]} {[%emt 00:00:03]} 33. Re3
{[%clk 00:01:08]} {[%emt 00:00:28]} d4 {[%clk 00:00:53]} {[%emt 00:00:04]} 34.
Ree1 {[%clk 00:01:03]} {[%emt 00:00:07]} d3 {[%clk 00:00:53]} {[%emt 00:00:02]}
35. Red1 {[%clk 00:00:54]} {[%emt 00:00:11]} Qf3 {[%clk 00:00:53]} {[%emt
00:00:02]} 36. Rxd3 {[%clk 00:00:14]} {[%emt 00:00:42]} Qh1# {[%clk 00:00:53]}
{[%emt 00:00:01]} 0-1

[ePGN "0.1;DGT LiveChess/2.2.5"]

[Event "Biel DQA Blitzn"]
[Site "Biel/Bienne, Switzerland"]
[Date "2022.07.17"]
[Round "10.1"]
[White "Cornileau, Juliette"]
[Black "Avilova, Yulia"]
[Result "0-1"]
[TimeControl "3 min + 2 sec"]
[WhiteElo "1653"]
[BlackElo "1597"]

1. d4 {[%clk 00:03:02]} {[%emt 00:00:01]} d5 {[%clk 00:03:03]} 2. c4 {[%clk
00:03:03]} {[%emt 00:00:02]} e6 {[%clk 00:03:04]} {[%emt 00:00:01]} 3. Nc3
{[%clk 00:03:04]} {[%emt 00:00:01]} Nf6 {[%clk 00:03:03]} {[%emt 00:00:03]} 4.
cxd5 {[%clk 00:03:04]} {[%emt 00:00:01]} exd5 {[%clk 00:03:04]} 5. Bg5 {[%clk
00:03:05]} Be7 {[%clk 00:03:05]} {[%emt 00:00:01]} 6. e3 {[%clk 00:03:06]}
{[%emt 00:00:01]} O-O {[%clk 00:03:05]} {[%emt 00:00:02]} 7. Bd3 {[%clk
00:03:01]} {[%emt 00:00:06]} Nbd7 {[%clk 00:03:06]} {[%emt 00:00:01]} 8. Nge2
{[%clk 00:03:00]} {[%emt 00:00:03]} b6 {[%clk 00:03:07]} 9. O-O {[%clk
00:02:58]} {[%emt 00:00:04]} Bb7 {[%clk 00:03:08]} {[%emt 00:00:01]} 10. f3
{[%clk 00:02:59]} {[%emt 00:00:01]} c5 {[%clk 00:03:02]} {[%emt 00:00:08]} 11.
Kh1 {[%clk 00:02:58]} {[%emt 00:00:03]} Kh8 {[%clk 00:03:03]} {[%emt 00:00:01]}
12. Qc2 {[%clk 00:02:30]} {[%emt 00:00:31]} h6 {[%clk 00:02:56]} {[%emt
00:00:09]} 13. Bf4 {[%clk 00:02:31]} {[%emt 00:00:01]} g5 {[%clk 00:02:51]}
{[%emt 00:00:07]} 14. Be5 {[%clk 00:02:29]} {[%emt 00:00:04]} Rg8 {[%clk
00:02:40]} {[%emt 00:00:13]} 15. Ng3 {[%clk 00:02:29]} {[%emt 00:00:02]} Nxe5
{[%clk 00:02:23]} {[%emt 00:00:20]} 16. dxe5 {[%clk 00:02:30]} {[%emt
00:00:01]} Nd7 {[%clk 00:02:23]} {[%emt 00:00:01]} 17. Nf5 {[%clk 00:02:27]}
{[%emt 00:00:05]} Nxe5 {[%clk 00:02:07]} {[%emt 00:00:18]} 18. Nxh6 {[%clk
00:02:26]} {[%emt 00:00:03]} Rf8 {[%clk 00:01:50]} {[%emt 00:00:19]} 19. f4
{[%clk 00:02:06]} {[%emt 00:00:22]} Nxd3 {[%clk 00:01:50]} {[%emt 00:00:02]} 20.
Qxd3 {[%clk 00:02:07]} {[%emt 00:00:02]} d4 {[%clk 00:01:42]} {[%emt 00:00:10]}
21. Ne2 {[%clk 00:01:34]} {[%emt 00:00:35]} Qd5 {[%clk 00:01:29]} {[%emt
00:00:16]} 22. Rg1 {[%clk 00:01:35]} Rae8 {[%clk 00:01:10]} {[%emt 00:00:21]}
23. exd4 {[%clk 00:01:18]} {[%emt 00:00:19]} gxf4 {[%clk 00:01:07]} {[%emt
00:00:04]} 24. Nxf4 {[%clk 00:01:11]} {[%emt 00:00:09]} Qxd4 {[%clk 00:01:07]}
{[%emt 00:00:02]} 25. Qh3 {[%clk 00:01:07]} {[%emt 00:00:06]} Qxf4 {[%clk
00:00:58]} {[%emt 00:00:12]} 26. Nf5+ {[%clk 00:00:58]} {[%emt 00:00:11]} Kg8
{[%clk 00:00:52]} {[%emt 00:00:08]} 27. Nh6+ {[%clk 00:00:41]} {[%emt
00:00:19]} Kh8 {[%clk 00:00:47]} {[%emt 00:00:07]} 28. Nf5+ {[%clk 00:00:27]}
{[%emt 00:00:16]} Kg8 {[%clk 00:00:48]} {[%emt 00:00:01]} 29. Raf1 {[%clk
00:00:09]} {[%emt 00:00:21]} Qg5 {[%clk 00:00:48]} {[%emt 00:00:01]} 30. Nh6+
{[%clk 00:00:09]} {[%emt 00:00:03]} Kg7 {[%clk 00:00:41]} {[%emt 00:00:09]} 31.
Nf5+ {[%clk 00:00:09]} {[%emt 00:00:01]} Kg6 {[%emt 00:00:06]} 32. Ng3 {[%clk
00:00:04]} {[%emt 00:00:04]} Bc8 {[%clk 00:00:40]} {[%emt 00:00:03]} 0-1

[Event "Biel DQA Blitzn"]
[Site "Biel/Bienne, Switzerland"]
[Date "2022.07.17"]
[Round "10.2"]
[White "Zhuang, Yongzhe"]
[Black "Keymer, Cecilia"]
[Result "1-0"]
[TimeControl "3 min + 2 sec"]
[WhiteElo "1681"]
[BlackElo "1652"]

1. e4 {[%clk 00:03:02]} {[%emt 00:00:02]} e5 {[%clk 00:03:04]} 2. Nf3 {[%emt
00:00:02]} Nc6 3. Bc4 {[%clk 00:03:02]} {[%emt 00:00:02]} Bc5 {[%clk 00:03:07]}
{[%emt 00:00:01]} 4. c3 {[%clk 00:03:03]} {[%emt 00:00:01]} Nf6 {[%clk
00:03:08]} 5. d3 {[%clk 00:03:03]} {[%emt 00:00:01]} d6 {[%clk 00:03:09]} 6. h3
{[%clk 00:03:04]} {[%emt 00:00:01]} a6 {[%clk 00:03:09]} {[%emt 00:00:02]} 7.
b4 {[%clk 00:03:01]} {[%emt 00:00:05]} Ba7 {[%clk 00:03:09]} {[%emt 00:00:02]}
8. a4 {[%clk 00:02:50]} {[%emt 00:00:13]} Ne7 {[%clk 00:03:01]} {[%emt
00:00:10]} 9. Bg5 {[%clk 00:02:35]} {[%emt 00:00:17]} Ng6 {[%clk 00:02:57]}
{[%emt 00:00:06]} 10. Qb3 {[%clk 00:02:27]} {[%emt 00:00:10]} O-O {[%clk
00:02:52]} {[%emt 00:00:07]} 11. O-O {[%clk 00:02:26]} {[%emt 00:00:02]} h6
{[%clk 00:02:49]} {[%emt 00:00:06]} 12. Bd2 {[%clk 00:02:25]} {[%emt 00:00:03]}
Qe7 {[%clk 00:02:41]} {[%emt 00:00:10]} 13. Na3 {[%clk 00:02:17]} {[%emt
00:00:09]} Be6 {[%clk 00:02:33]} {[%emt 00:00:10]} 14. Rfe1 {[%clk 00:02:03]}
{[%emt 00:00:16]} Rfe8 {[%clk 00:02:09]} {[%emt 00:00:26]} 15. Rad1 {[%clk
00:01:37]} {[%emt 00:00:28]} Bxc4 {[%clk 00:02:03]} {[%emt 00:00:08]} 16. Nxc4
{[%clk 00:01:37]} {[%emt 00:00:02]} Qe6 {[%clk 00:01:41]} {[%emt 00:00:24]} 17.
Qc2 {[%clk 00:01:30]} {[%emt 00:00:10]} Rad8 {[%clk 00:01:34]} {[%emt
00:00:09]} 18. Na5 {[%clk 00:01:20]} {[%emt 00:00:12]} Qc8 {[%clk 00:01:26]}
{[%emt 00:00:10]} 19. Nc4 {[%clk 00:01:11]} {[%emt 00:00:12]} Qe6 {[%clk
00:01:24]} {[%emt 00:00:04]} 20. Ne3 {[%clk 00:01:10]} {[%emt 00:00:02]} Nf4
{[%clk 00:01:00]} {[%emt 00:00:26]} 21. Nf5 {[%clk 00:00:58]} {[%emt 00:00:13]}
N6h5 {[%clk 00:00:45]} {[%emt 00:00:16]} 22. d4 {[%clk 00:00:27]} {[%emt
00:00:34]} exd4 {[%clk 00:00:36]} {[%emt 00:00:12]} 23. cxd4 {[%clk 00:00:26]}
{[%emt 00:00:03]} Qg6 {[%clk 00:00:11]} {[%emt 00:00:26]} 24. N3h4 {[%clk
00:00:19]} {[%emt 00:00:09]} Qe6 {[%clk 00:00:05]} {[%emt 00:00:08]} 25. Qc1
{[%clk 00:00:15]} {[%emt 00:00:06]} Ng6 {[%clk 00:00:04]} {[%emt 00:00:03]} 26.
Qc3 {[%clk 00:00:10]} {[%emt 00:00:06]} c6 {[%clk 00:00:05]} {[%emt 00:00:03]}
27. Qf3 {[%clk 00:00:10]} {[%emt 00:00:02]} Nf6 {[%clk 00:00:05]} {[%emt
00:00:02]} 28. Nxg6 {[%clk 00:00:10]} {[%emt 00:00:01]} fxg6 {[%clk 00:00:05]}
{[%emt 00:00:02]} 29. Ng3 {[%clk 00:00:11]} {[%emt 00:00:02]} Rf8 {[%clk
00:00:06]} {[%emt 00:00:02]} 30. Qd3 {[%clk 00:00:10]} {[%emt 00:00:02]} Nd7
{[%clk 00:00:07]} {[%emt 00:00:02]} 31. Be3 {[%clk 00:00:11]} {[%emt 00:00:01]}
d5 {[%clk 00:00:07]} {[%emt 00:00:02]} 32. e5 {[%clk 00:00:12]} Rde8 {[%clk
00:00:07]} {[%emt 00:00:02]} 33. Rc1 {[%clk 00:00:12]} {[%emt 00:00:01]} Rf7
{[%clk 00:00:07]} {[%emt 00:00:02]} 34. b5 {[%clk 00:00:12]} {[%emt 00:00:02]}
axb5 {[%clk 00:00:08]} 35. axb5 {[%clk 00:00:14]} Ref8 {[%clk 00:00:09]} {[%emt
00:00:01]} 36. bxc6 {[%clk 00:00:14]} {[%emt 00:00:02]} bxc6 {[%clk 00:00:10]}
37. Ra1 {[%clk 00:00:15]} Bb6 {[%clk 00:00:10]} {[%emt 00:00:02]} 38. Ra6
{[%clk 00:00:15]} {[%emt 00:00:01]} Qe7 {[%clk 00:00:06]} {[%emt 00:00:05]} 39.
Rc1 {[%clk 00:00:14]} {[%emt 00:00:02]} Rc8 {[%clk 00:00:05]} {[%emt 00:00:03]}
40. Ra3 {[%clk 00:00:14]} {[%emt 00:00:02]} Bd8 {[%clk 00:00:06]} {[%emt
00:00:02]} 41. Ra7 {[%clk 00:00:15]} {[%emt 00:00:01]} Qe6 {[%clk 00:00:06]}
{[%emt 00:00:02]} 42. Rca1 {[%clk 00:00:15]} {[%emt 00:00:02]} Bb6 {[%clk
00:00:06]} {[%emt 00:00:02]} 43. Rb7 {[%clk 00:00:15]} {[%emt 00:00:01]} Rff8
{[%clk 00:00:04]} {[%emt 00:00:05]} 44. Qa6 {[%clk 00:00:16]} Bd8 {[%clk
00:00:04]} {[%emt 00:00:03]} 45. Qa7 {[%clk 00:00:16]} {[%emt 00:00:01]} Rf7
{[%clk 00:00:04]} {[%emt 00:00:02]} 46. Ra6 {[%clk 00:00:16]} {[%emt 00:00:02]}
Bg5 {[%clk 00:00:04]} {[%emt 00:00:02]} 47. Bxg5 {[%clk 00:00:13]} {[%emt
00:00:06]} hxg5 {[%clk 00:00:05]} 48. Ra2 {[%clk 00:00:13]} {[%emt 00:00:01]}
Rd8 {[%clk 00:00:05]} {[%emt 00:00:03]} 49. Qa4 {[%clk 00:00:13]} {[%emt
00:00:02]} Rb8 {[%clk 00:00:05]} {[%emt 00:00:02]} 50. Rc7 {[%clk 00:00:13]}
{[%emt 00:00:01]} Nb6 {[%clk 00:00:06]} {[%emt 00:00:02]} 51. Qxc6 {[%clk
00:00:13]} {[%emt 00:00:02]} Qxc6 {[%clk 00:00:06]} {[%emt 00:00:02]} 52. Rxc6
{[%clk 00:00:14]} Nc4 {[%clk 00:00:07]} {[%emt 00:00:02]} 53. e6 {[%clk
00:00:10]} {[%emt 00:00:06]} Rb1+ {[%clk 00:00:04]} {[%emt 00:00:05]} 54. Kh2
{[%clk 00:00:11]} Rf8 {[%clk 00:00:05]} {[%emt 00:00:02]} 55. e7 {[%clk
00:00:11]} {[%emt 00:00:01]} Re8 {[%clk 00:00:05]} {[%emt 00:00:02]} 56. Re6
{[%clk 00:00:10]} {[%emt 00:00:02]} Rb7 {[%clk 00:00:05]} {[%emt 00:00:03]} 57.
Rae2 {[%clk 00:00:11]} {[%emt 00:00:01]} Nd6 {[%clk 00:00:04]} {[%emt
00:00:03]} 58. Rxd6 {[%clk 00:00:11]} {[%emt 00:00:02]} Rexe7 {[%emt 00:00:02]}
59. Rxe7 {[%clk 00:00:12]} {[%emt 00:00:01]} Rxe7 {[%clk 00:00:07]} 60. Rxd5
{[%clk 00:00:12]} {[%emt 00:00:02]} Kf7 {[%clk 00:00:08]} 61. Rxg5 {[%clk
00:00:13]} {[%emt 00:00:02]} Kf6 {[%clk 00:00:09]} 62. Ra5 {[%clk 00:00:13]}
{[%emt 00:00:01]} Rd7 {[%clk 00:00:11]} {[%emt 00:00:01]} 63. d5 {[%clk
00:00:14]} {[%emt 00:00:01]} Ke5 {[%clk 00:00:11]} {[%emt 00:00:01]} 64. Ra6
{[%clk 00:00:13]} {[%emt 00:00:03]} g5 {[%clk 00:00:11]} {[%emt 00:00:02]} 65.
d6 {[%clk 00:00:12]} {[%emt 00:00:03]} Rxd6 {[%clk 00:00:11]} {[%emt 00:00:01]}
66. Rxd6 Kxd6 67. Nf5+ {[%clk 00:00:13]} {[%emt 00:00:01]} Ke6 {[%clk
00:00:14]} {[%emt 00:00:01]} 68. Nxg7+ {[%emt 00:00:01]} Kf6 69. Nh5+ {[%clk
00:00:13]} {[%emt 00:00:02]} Kg6 {[%clk 00:00:17]} {[%emt 00:00:01]} 70. g4
{[%clk 00:00:14]} Kf6 {[%clk 00:00:18]} {[%emt 00:00:02]} 71. Kg3+ {[%clk
00:00:15]} Ke5 {[%clk 00:00:19]} 72. Kf3 {[%clk 00:00:16]} Kd4 {[%clk
00:00:19]} {[%emt 00:00:01]} 73. Nf6 {[%clk 00:00:15]} {[%emt 00:00:04]} Ke5
{[%clk 00:00:20]} {[%emt 00:00:01]} 74. Nh7 {[%clk 00:00:15]} {[%emt 00:00:02]}
Ke6 {[%clk 00:00:21]} {[%emt 00:00:01]} 75. Ke4 {[%clk 00:00:16]} Kf7 {[%clk
00:00:21]} {[%emt 00:00:02]} 76. Nxg5+ {[%clk 00:00:16]} {[%emt 00:00:02]} 1-0